bitfinex/quotes_BTCUSD_20241229
["timestamp","ask_amount","ask_price","bid_price","bid_amount"]
[1735469550466,0.01644537,95405.0,95404.0,0.0031708]
[1735469551496,0.01644537,95405.0,95404.0,0.0051708]
[1735469552076,0.01644537,95405.0,95404.0,0.0031708]
[1735469552281,0.01644537,95405.0,95404.0,0.0051708]
[1735469553398,8.54e-05,95407.0,95404.0,0.0051708]
[1735469554558,8.54e-05,95407.0,95404.0,0.0031708]
[1735469554700,8.54e-05,95407.0,95404.0,0.0041708]
[1735469555375,8.54e-05,95407.0,95404.0,0.0011708]
[1735469555551,8.54e-05,95407.0,95404.0,0.0031708]
[1735469556818,0.01653016,95407.0,95404.0,0.0031708]
[1735469560741,0.01653016,95407.0,95404.0,0.0021708]
[1735469561044,0.01653016,95407.0,95404.0,0.0031708]
[1735469561709,0.01653016,95407.0,95404.0,0.0011708]
[1735469561946,0.01653016,95407.0,95404.0,0.0021708]
[1735469562237,0.01653016,95407.0,95404.0,0.0001708]
[1735469563397,8.54e-05,95407.0,95404.0,0.0001708]
[1735469566770,0.01653016,95407.0,95404.0,0.0001708]
[1735469568790,0.01853016,95407.0,95404.0,0.0001708]
[1735469568995,0.01653016,95407.0,95404.0,0.0001708]
[1735469569427,0.01953016,95407.0,95404.0,0.0001708]
[1735469570332,0.02053016,95407.0,95404.0,0.0001708]
[1735469573337,0.0040854,95407.0,95404.0,0.0001708]
[1735469576609,5.025198,95406.0,95404.0,0.0001708]
[1735469576889,5.075098,95406.0,95404.0,0.0001708]
[1735469577084,5.025198,95405.0,95404.0,0.0001708]
[1735469579451,5.027198,95405.0,95404.0,0.0001708]
[1735469579893,4.296,95405.0,95404.0,0.0001708]
[1735469580096,4.163,95405.0,95404.0,0.0001708]
[1735469586623,4.17944605,95405.0,95404.0,0.0001708]
[1735469586870,0.01844605,95405.0,95404.0,0.0001708]
[1735469587095,4.27744605,95405.0,95404.0,0.0001708]
[1735469587985,4.25244605,95405.0,95404.0,0.0001708]
[1735469588130,3.26044605,95405.0,95404.0,0.0001708]
[1735469589988,3.24944605,95405.0,95404.0,0.0001708]
[1735469590150,3.24953145,95405.0,95404.0,0.0001708]
[1735469590349,3.20653145,95405.0,95404.0,0.0001708]
[1735469591613,1.67653145,95405.0,95404.0,0.0001708]
[1735469591981,1.66153145,95405.0,95404.0,0.0001708]
[1735469592565,0.51553145,95405.0,95404.0,0.0001708]
[1735469592791,0.49353145,95405.0,95404.0,0.0001708]
[1735469593378,0.4770854,95405.0,95404.0,0.0001708]
[1735469593764,0.3740854,95405.0,95404.0,0.0001708]
[1735469594504,0.0020854,95405.0,95404.0,0.0001708]
[1735469596642,0.0185312,95405.0,95404.0,0.0001708]
[1735469602470,0.0185312,95405.0,95404.0,0.0796708]
[1735469603330,0.0020854,95405.0,95404.0,0.0796708]
[1735469605305,0.0020854,95405.0,95404.0,0.0001708]
[1735469606660,0.0185308,95405.0,95404.0,0.0001708]
[1735469607865,5.0437288,95405.0,95404.0,0.0001708]
[1735469613373,5.0272834,95405.0,95404.0,0.0001708]
[1735469615727,0.0020854,95405.0,95404.0,0.0001708]
[1735469615940,5.0262834,95405.0,95404.0,0.0001708]
[1735469616078,5.0312834,95405.0,95404.0,0.0011708]
[1735469616734,5.04772934,95405.0,95404.0,0.0011708]
[1735469617135,5.04672934,95405.0,95404.0,0.0011708]
[1735469617279,5.04872934,95405.0,95404.0,0.0011708]
[1735469619408,5.04872934,95405.0,95404.0,0.0001708]
[1735469619629,5.04372934,95405.0,95404.0,0.0001708]
[1735469619831,5.04872934,95405.0,95404.0,0.0001708]
[1735469619983,5.04672934,95405.0,95404.0,0.0001708]
[1735469620435,5.04872934,95405.0,95404.0,0.0001708]
[1735469623371,5.0322834,95405.0,95404.0,0.0001708]
[1735469626725,5.04872929,95405.0,95404.0,0.0001708]
[1735469631241,0.02353129,95405.0,95404.0,0.0001708]
[1735469631693,5.04872929,95405.0,95404.0,0.0001708]
[1735469631887,0.02353129,95405.0,95404.0,0.0001708]
[1735469632098,5.04872929,95405.0,95404.0,0.0001708]
[1735469633372,5.0322834,95405.0,95404.0,0.0001708]
[1735469635416,4.82359438,95405.0,95404.0,0.0001708]
[1735469635622,4.823595,95405.0,95404.0,0.0001708]
[1735469636233,4.8236804,95405.0,95404.0,0.0001708]
[1735469636767,4.84012624,95405.0,95404.0,0.0001708]
[1735469643550,4.8236804,95405.0,95404.0,0.0001708]
[1735469646712,4.84012622,95405.0,95404.0,0.0001708]
[1735469653447,4.8236804,95405.0,95404.0,0.0001708]
[1735469656771,4.84012622,95405.0,95404.0,0.0001708]
[1735469663367,4.8236804,95405.0,95404.0,0.0001708]
[1735469666636,4.84012652,95405.0,95404.0,0.0001708]
[1735469670375,4.84012652,95405.0,95395.0,0.05675468]
[1735469670584,4.823595,95404.0,95395.0,0.05675468]
[1735469671912,0.23655795,95398.0,95395.0,0.05675468]
[1735469672117,0.23655795,95398.0,95388.0,0.0827]
[1735469672320,4.823595,95397.0,95388.0,0.0827]
[1735469672485,4.823595,95397.0,95395.0,0.0001708]
[1735469673053,4.84004127,95397.0,95395.0,0.0001708]
[1735469673260,4.823595,95396.0,95395.0,0.0001708]
[1735469673653,4.823595,95397.0,95395.0,0.0001708]
[1735469673895,4.824595,95397.0,95395.0,0.0001708]
[1735469674092,4.823595,95396.0,95395.0,0.0001708]
[1735469674310,4.823595,95396.0,95394.0,0.05416021]
[1735469674542,4.823595,95397.0,95394.0,0.05416021]
[1735469674895,4.823595,95397.0,95390.0,0.05416021]
[1735469675100,4.823595,95397.0,95393.0,0.05416021]
[1735469675338,4.823595,95404.0,95393.0,0.05416021]
[1735469676058,0.23653584,95396.0,95393.0,0.05416021]
[1735469676364,4.823595,95395.0,95393.0,0.05416021]
[1735469677520,4.823595,95395.0,95393.0,0.05516021]
[1735469677796,4.823595,95395.0,95392.0,0.05416021]
[1735469679118,4.824595,95395.0,95392.0,0.05416021]
[1735469679391,4.823595,95394.0,95392.0,0.05416021]
[1735469679989,4.823595,95394.0,95388.0,0.0827]
[1735469680504,4.827595,95395.0,95388.0,0.0827]
[1735469680806,4.823595,95394.0,95393.0,0.05416021]
[1735469681246,4.826595,95394.0,95393.0,0.05416021]
[1735469681452,4.827595,95394.0,95393.0,0.05416021]
[1735469681878,4.826595,95394.0,95393.0,0.05416021]
[1735469682076,4.827595,95394.0,95393.0,0.05416021]
[1735469682494,4.824595,95394.0,95393.0,0.05416021]
[1735469683358,4.575,95394.0,95393.0,0.05416021]
[1735469683978,4.271,95394.0,95393.0,0.05416021]
[1735469684181,3.983,95394.0,95393.0,0.05433101]
[1735469684389,3.767,95394.0,95393.0,0.05433101]
[1735469684967,1.014,95394.0,95393.0,0.05433101]
[1735469685559,1.01,95394.0,95393.0,0.05433101]
[1735469686019,1.012,95394.0,95393.0,0.05433101]
[1735469686759,1.02844604,95394.0,95393.0,0.05433101]
[1735469687175,1.02944604,95394.0,95393.0,0.05433101]
[1735469687578,1.02844604,95394.0,95393.0,0.05433101]
[1735469688350,0.01844604,95394.0,95393.0,0.05433101]
[1735469688750,2.66644604,95394.0,95393.0,0.05433101]
[1735469690773,2.66544604,95394.0,95393.0,0.05433101]
[1735469692300,2.55844604,95394.0,95393.0,0.05433101]
[1735469692499,2.55744604,95394.0,95393.0,0.05433101]
[1735469692731,2.55844604,95394.0,95393.0,0.05433101]
[1735469693298,2.542,95394.0,95393.0,0.05433101]
[1735469694618,2.276,95394.0,95393.0,0.05433101]
[1735469694819,2.261,95394.0,95393.0,0.05433101]
[1735469695779,2.24862518,95394.0,95393.0,0.05433101]
[1735469696011,2.244,95394.0,95393.0,0.05433101]
[1735469696730,2.26044615,95394.0,95393.0,0.05433101]
[1735469697101,2.26514731,95394.0,95393.0,0.05433101]
[1735469697708,2.26523271,95394.0,95393.0,0.05433101]
[1735469698112,2.25323271,95394.0,95393.0,0.05433101]
[1735469698975,2.23823271,95394.0,95393.0,0.05433101]
[1735469699174,2.47476855,95394.0,95393.0,0.05433101]
[1735469699992,2.23823271,95394.0,95393.0,0.05433101]
[1735469700669,2.23723271,95394.0,95393.0,0.05433101]
[1735469700910,2.47476855,95394.0,95393.0,0.05433101]
[1735469703230,2.42476855,95394.0,95393.0,0.05433101]
[1735469703359,2.4083224,95394.0,95393.0,0.05433101]
[1735469705729,2.3923224,95394.0,95393.0,0.05433101]
[1735469706147,2.3653224,95394.0,95393.0,0.05433101]
[1735469706774,2.38176852,95394.0,95393.0,0.05433101]
[1735469707016,2.37706736,95394.0,95393.0,0.05433101]
[1735469707439,2.37706736,95394.0,95393.0,0.05145292]
[1735469708564,2.14053152,95394.0,95393.0,0.05145292]
[1735469709136,2.14053152,95394.0,95388.0,0.0827]
[1735469709332,2.337,95393.0,95388.0,0.0827]
[1735469710100,2.337,95393.0,95388.0,0.0828708]
[1735469710648,2.337,95393.0,95389.0,0.05145292]
[1735469710850,2.266,95393.0,95392.0,0.05145292]
[1735469711073,2.266,95393.0,95389.0,0.05145292]
[1735469713421,0.00473987,95392.0,95389.0,0.05145292]
[1735469714646,0.00473987,95392.0,95391.0,0.05145292]
[1735469714853,2.34673987,95392.0,95391.0,0.05145292]
[1735469715329,2.34673987,95392.0,95389.0,0.05145292]
[1735469715541,0.00473987,95392.0,95389.0,0.05145292]
[1735469715745,0.00573987,95392.0,95389.0,0.05145292]
[1735469716468,0.00673987,95392.0,95391.0,0.05145292]
[1735469716711,0.00573987,95392.0,95391.0,0.05145292]
[1735469716960,2.07818615,95392.0,95391.0,0.05145292]
[1735469718580,2.07618615,95392.0,95391.0,0.05145292]
[1735469718825,0.89718615,95392.0,95391.0,0.05145292]
[1735469719460,1.13372199,95392.0,95391.0,0.05145292]
[1735469719635,1.13272199,95392.0,95391.0,0.05145292]
[1735469721345,0.89618615,95392.0,95391.0,0.05145292]
[1735469722061,0.89618615,95392.0,95391.0,0.05162372]
[1735469723011,0.89618615,95392.0,95391.0,0.0001708]
[1735469723600,0.87973987,95392.0,95391.0,0.0001708]
[1735469725206,0.88273987,95392.0,95391.0,0.0001708]
[1735469725625,0.88173987,95392.0,95391.0,0.0001708]
[1735469725982,0.88273987,95392.0,95391.0,0.0001708]
[1735469726355,0.87973987,95392.0,95391.0,0.0001708]
[1735469726560,0.88073987,95392.0,95391.0,0.0001708]
[1735469726839,0.89918637,95392.0,95391.0,0.0001708]
[1735469727031,0.89902876,95392.0,95391.0,0.0001708]
[1735469727623,1.13576176,95392.0,95391.0,0.0001708]
[1735469727827,1.13476176,95392.0,95391.0,0.0001708]
[1735469728032,1.13276176,95392.0,95391.0,0.0001708]
[1735469728226,1.13576176,95392.0,95391.0,0.0001708]
[1735469728431,0.26076176,95392.0,95391.0,0.0001708]
[1735469728633,2.71276176,95392.0,95391.0,0.0001708]
[1735469729072,2.71576176,95392.0,95391.0,0.0001708]
[1735469731176,2.47902876,95392.0,95391.0,0.0001708]
[1735469731389,2.41002876,95392.0,95391.0,0.0001708]
[1735469733463,2.39358226,95392.0,95391.0,0.0001708]
[1735469734559,2.39366766,95392.0,95391.0,0.0001708]
[1735469736867,2.38266766,95392.0,95391.0,0.0001708]
[1735469737904,2.39911431,95392.0,95391.0,0.0001708]
[1735469743536,2.38266766,95392.0,95391.0,0.0001708]
[1735469744340,2.43136766,95392.0,95391.0,0.0001708]
[1735469744930,2.43036766,95392.0,95391.0,0.0001708]
[1735469745324,2.43236766,95392.0,95391.0,0.0001708]
[1735469745506,2.44136766,95392.0,95391.0,0.0011708]
[1735469746842,2.45781608,95392.0,95391.0,0.0011708]
[1735469747043,2.45381608,95392.0,95391.0,0.0011708]
[1735469747208,2.44481608,95392.0,95391.0,0.0001708]
[1735469747414,2.44881608,95392.0,95391.0,0.0001708]
[1735469747640,2.45781608,95392.0,95391.0,0.0011708]
[1735469747848,2.45381608,95392.0,95391.0,0.0011708]
[1735469748186,2.45681608,95392.0,95391.0,0.0011708]
[1735469748569,2.44781608,95392.0,95391.0,0.0001708]
[1735469748916,2.45681608,95392.0,95391.0,0.0011708]
[1735469749031,2.45681608,95392.0,95391.0,0.0001708]
[1735469749519,2.46581608,95392.0,95391.0,0.0011708]
[1735469753669,2.44936766,95392.0,95391.0,0.0011708]
[1735469755505,2.73254462,95392.0,95391.0,0.0011708]
[1735469756842,2.74899322,95392.0,95391.0,0.0011708]
[1735469757277,2.46581626,95392.0,95391.0,0.0011708]
[1735469759304,4.91441126,95392.0,95391.0,0.0011708]
[1735469763653,4.89796266,95392.0,95391.0,0.0011708]
[1735469766976,4.91441115,95392.0,95391.0,0.0011708]
[1735469774130,4.89796266,95392.0,95391.0,0.0011708]
[1735469775823,5.18113962,95392.0,95391.0,0.0011708]
[1735469776230,5.28113962,95392.0,95391.0,0.0011708]
[1735469776864,4.99796266,95392.0,95391.0,0.0011708]
[1735469777426,5.01441177,95392.0,95391.0,0.0011708]
[1735469780276,0.19081677,95392.0,95391.0,0.0011708]
[1735469780479,5.01441177,95392.0,95391.0,0.0011708]
[1735469781263,5.33310627,95392.0,95391.0,0.0011708]
[1735469781584,5.33010627,95392.0,95391.0,0.0011708]
[1735469781790,5.33610627,95392.0,95391.0,0.0021708]
[1735469782305,5.31810627,95392.0,95391.0,0.0011708]
[1735469783097,5.30165716,95392.0,95391.0,0.0011708]
[1735469783698,5.31065716,95392.0,95391.0,0.0011708]
[1735469784561,4.99196266,95392.0,95391.0,0.0011708]
[1735469786125,5.00841127,95392.0,95391.0,0.0011708]
[1735469787209,4.99196266,95392.0,95391.0,0.0011708]
[1735469791470,5.00841244,95392.0,95391.0,0.0011708]
[1735469792511,4.99196266,95392.0,95391.0,0.0011708]
[1735469793657,5.04050974,95392.0,95391.0,0.0011708]
[1735469794294,5.11550974,95392.0,95391.0,0.0011708]
[1735469795532,5.1319598,95392.0,95391.0,0.0011708]
[1735469795758,4.86613433,95392.0,95391.0,0.0011708]
[1735469796002,4.86613514,95392.0,95391.0,0.0011708]
[1735469796772,4.84968508,95392.0,95391.0,0.0011708]
[1735469799759,4.86613512,95392.0,95391.0,0.0011708]
[1735469802555,4.84968508,95392.0,95391.0,0.0011708]
[1735469804542,4.84977048,95392.0,95391.0,0.0011708]
[1735469805702,4.86622055,95392.0,95391.0,0.0011708]
[1735469810660,4.79122055,95392.0,95391.0,0.0011708]
[1735469813540,4.77477048,95392.0,95391.0,0.0011708]
[1735469816706,4.79122055,95392.0,95391.0,0.0011708]
[1735469823048,4.77477048,95392.0,95391.0,0.0011708]
[1735469824896,0.06363248,95392.0,95391.0,0.0011708]
[1735469825195,4.77477048,95392.0,95391.0,0.0011708]
[1735469826392,4.79122019,95392.0,95391.0,0.0011708]
[1735469830252,4.90202019,95392.0,95391.0,0.0011708]
[1735469830483,4.79122019,95392.0,95391.0,0.0011708]
[1735469833964,4.77477048,95392.0,95391.0,0.0011708]
[1735469837321,4.7912203,95392.0,95391.0,0.0011708]
[1735469843364,4.7852203,95392.0,95391.0,0.0001708]
[1735469843608,4.7822203,95392.0,95391.0,0.0011708]
[1735469843829,4.77477048,95392.0,95391.0,0.0011708]
[1735469844918,4.76877048,95392.0,95391.0,0.0001708]
[1735469845408,4.77577048,95392.0,95391.0,0.0001708]
[1735469847187,4.79222069,95392.0,95391.0,0.0001708]
[1735469847384,4.81328069,95392.0,95391.0,0.0001708]
[1735469847642,4.79222069,95392.0,95391.0,0.0001708]
[1735469850887,5.25698351,95392.0,95391.0,0.0001708]
[1735469852943,4.79222069,95392.0,95391.0,0.0001708]
[1735469853668,4.77577048,95392.0,95391.0,0.0001708]
[1735469854707,4.77997648,95392.0,95391.0,0.0001708]
[1735469854952,0.04854708,95383.0,95373.0,0.07119314]
[1735469855169,4.711138,95382.0,95373.0,0.07119314]
[1735469856163,4.71118872,95382.0,95373.0,0.07119314]
[1735469856299,4.711138,95381.0,95373.0,0.07119314]
[1735469856479,0.31945663,95377.0,95373.0,0.07119314]
[1735469856680,4.711138,95376.0,95373.0,0.07119314]
[1735469858216,4.720138,95376.0,95373.0,0.07119314]
[1735469858439,4.711138,95375.0,95373.0,0.07119314]
[1735469859490,4.706138,95375.0,95373.0,0.07119314]
[1735469859719,4.715138,95375.0,95373.0,0.07119314]
[1735469859969,4.706138,95374.0,95373.0,0.07119314]
[1735469862533,4.709138,95374.0,95373.0,0.07119314]
[1735469862764,4.718138,95374.0,95373.0,0.07119314]
[1735469863386,4.718138,95374.0,95373.0,0.07136394]
[1735469864469,4.709138,95374.0,95373.0,0.07136394]
[1735469864738,4.706138,95374.0,95373.0,0.07136394]
[1735469864941,4.709138,95374.0,95373.0,0.07136394]
[1735469866333,4.718138,95374.0,95373.0,0.07136394]
[1735469866829,4.73459154,95374.0,95373.0,0.07136394]
[1735469867013,4.73459154,95374.0,95373.0,0.0686364]
[1735469869353,0.02845354,95374.0,95373.0,0.0686364]
[1735469869774,4.73459154,95374.0,95373.0,0.0686364]
[1735469873746,4.718138,95374.0,95373.0,0.0686364]
[1735469875412,4.7182234,95374.0,95373.0,0.0686364]
[1735469876666,4.73467694,95374.0,95373.0,0.0686364]
[1735469878383,4.73467694,95374.0,95373.0,0.0001708]
[1735469879968,0.02853894,95374.0,95373.0,0.0001708]
[1735469880221,4.73467694,95374.0,95373.0,0.0001708]
[1735469883699,4.7182234,95374.0,95373.0,0.0001708]
[1735469886674,4.73467801,95374.0,95373.0,0.0001708]
[1735469891769,4.63654001,95374.0,95373.0,0.0001708]
[1735469893640,4.6200854,95374.0,95373.0,0.0001708]
[1735469896647,4.63653951,95374.0,95373.0,0.0001708]
[1735469903726,4.6200854,95374.0,95373.0,0.0001708]
[1735469906213,4.4790854,95374.0,95373.0,0.1235708]
[1735469906651,4.49553881,95374.0,95373.0,0.1235708]
[1735469907009,4.48653881,95374.0,95373.0,0.1235708]
[1735469907435,4.49553881,95374.0,95373.0,0.1235708]
[1735469907977,4.46053881,95374.0,95373.0,0.1235708]
[1735469908192,0.57653881,95374.0,95373.0,0.17502372]
[1735469908347,0.49453881,95374.0,95373.0,0.27502372]
[1735469908797,0.49253881,95374.0,95373.0,0.30252609]
[1735469909002,0.48353881,95374.0,95373.0,0.30252609]
[1735469909427,0.46753881,95374.0,95373.0,0.30352609]
[1735469909844,0.46753881,95374.0,95373.0,0.30252609]
[1735469910064,0.46753881,95374.0,95373.0,0.30452609]
[1735469910277,0.46753881,95374.0,95373.0,0.27702372]
[1735469911117,0.46753881,95374.0,95373.0,0.27802372]
[1735469911357,0.44253881,95374.0,95373.0,0.27802372]
[1735469911568,0.02353881,95374.0,95373.0,0.27802372]
[1735469912637,0.31653881,95374.0,95373.0,0.27802372]
[1735469912868,0.02353881,95374.0,95373.0,0.27802372]
[1735469913526,0.4200854,95374.0,95373.0,0.27802372]
[1735469913758,0.7410854,95374.0,95373.0,0.27802372]
[1735469913957,0.7730854,95374.0,95373.0,0.27802372]
[1735469914850,0.7130854,95374.0,95373.0,0.27802372]
[1735469915263,0.7130854,95374.0,95373.0,0.2265708]
[1735469915410,0.7130854,95374.0,95373.0,0.27802372]
[1735469916623,0.2940854,95374.0,95373.0,0.27802372]
[1735469916826,0.2520854,95374.0,95373.0,0.27802372]
[1735469917058,0.2685372,95374.0,95373.0,0.27802372]
[1735469918436,0.2685372,95374.0,95373.0,0.27702372]
[1735469919019,0.2615372,95374.0,95373.0,0.27502372]
[1735469919234,0.2615372,95374.0,95373.0,0.27602372]
[1735469919464,0.2615372,95374.0,95373.0,0.27702372]
[1735469919684,0.2615372,95374.0,95373.0,0.27602372]
[1735469920080,0.2615372,95374.0,95373.0,0.27702372]
[1735469920975,0.2615372,95374.0,95373.0,0.27602372]
[1735469921189,0.2615372,95374.0,95373.0,0.27702372]
[1735469921609,0.2615372,95374.0,95373.0,0.27602372]
[1735469921821,0.2615372,95374.0,95373.0,0.27702372]
[1735469921995,0.2615372,95374.0,95373.0,0.27602372]
[1735469923581,0.2450854,95374.0,95373.0,0.27602372]
[1735469926838,0.26153742,95374.0,95373.0,0.27602372]
[1735469928845,0.26153742,95374.0,95373.0,0.27502372]
[1735469929052,0.26253742,95374.0,95373.0,0.27502372]
[1735469929259,0.26253742,95374.0,95373.0,0.27602372]
[1735469929468,0.26353742,95374.0,95373.0,0.27602372]
[1735469930560,0.26353742,95374.0,95373.0,0.27502372]
[1735469930805,0.26353742,95374.0,95373.0,0.27602372]
[1735469933435,0.2470854,95374.0,95373.0,0.27602372]
[1735469936583,0.2635375,95374.0,95373.0,0.27602372]
[1735469943534,0.2470854,95374.0,95373.0,0.27602372]
[1735469945170,0.2470854,95374.0,95373.0,0.2245708]
[1735469945409,0.2470854,95374.0,95373.0,0.27602372]
[1735469946631,0.26353748,95374.0,95373.0,0.27602372]
[1735469953651,0.2470854,95374.0,95373.0,0.27602372]
[1735469956598,0.26353756,95374.0,95373.0,0.27602372]
[1735469957054,0.03338184,95374.0,95373.0,0.27602372]
[1735469957947,0.03346724,95374.0,95373.0,0.27602372]
[1735469960722,0.03346724,95374.0,95373.0,0.27502372]
[1735469960955,0.03346724,95374.0,95373.0,0.27602372]
[1735469962229,0.03346724,95374.0,95373.0,0.27502372]
[1735469962359,0.03346724,95374.0,95373.0,0.27602372]
[1735469963521,0.01701508,95374.0,95373.0,0.27602372]
[1735469966903,0.03346686,95374.0,95373.0,0.27602372]
[1735469971102,0.03346686,95374.0,95373.0,0.2245708]
[1735469971306,0.03346686,95374.0,95373.0,0.27602372]
[1735469973816,0.01701508,95374.0,95373.0,0.27602372]
[1735469974362,0.01701508,95374.0,95373.0,0.30362609]
[1735469975187,0.01701508,95374.0,95373.0,0.27602372]
[1735469976835,0.03346736,95374.0,95373.0,0.27602372]
[1735469983583,0.01701508,95374.0,95373.0,0.27602372]
[1735469986659,0.03346728,95374.0,95373.0,0.27602372]
[1735469987595,0.0185376,95374.0,95373.0,0.27602372]
[1735469987915,2.0085376,95374.0,95373.0,0.27602372]
[1735469988705,1.9775376,95374.0,95373.0,0.27602372]
[1735469989454,1.9625376,95374.0,95373.0,0.27602372]
[1735469989587,1.9115376,95374.0,95373.0,0.27602372]
[1735469991410,1.8635376,95374.0,95373.0,0.27602372]
[1735469991992,1.8135376,95374.0,95373.0,0.27602372]
[1735469992192,1.6095376,95374.0,95373.0,0.27602372]
[1735469992397,1.5715376,95374.0,95373.0,0.27602372]
[1735469992988,1.5485376,95374.0,95373.0,0.27602372]
[1735469993205,1.5375376,95374.0,95373.0,0.27602372]
[1735469993405,1.2575376,95374.0,95373.0,0.27602372]
[1735469993606,1.2410854,95374.0,95373.0,0.27602372]
[1735469994841,1.2040854,95374.0,95373.0,0.27602372]
[1735469995486,0.5730854,95374.0,95373.0,0.27602372]
[1735469996171,0.5620854,95374.0,95373.0,0.27602372]
[1735469996621,0.56453762,95374.0,95373.0,0.27602372]
[1735469997278,0.55353762,95374.0,95373.0,0.27602372]
[1735469997595,0.39553762,95374.0,95373.0,0.27602372]
[1735469998017,0.28753762,95374.0,95373.0,0.27602372]
[1735469998728,0.27453762,95374.0,95373.0,0.27602372]
[1735469999208,0.26353762,95374.0,95373.0,0.27602372]
[1735469999448,0.01853762,95374.0,95373.0,0.30362609]
[1735470001483,0.01853762,95374.0,95373.0,0.27602372]
[1735470001942,0.0020854,95374.0,95373.0,0.27602372]
[1735470011504,0.01853708,95374.0,95373.0,0.27602372]
[1735470013766,0.0020854,95374.0,95373.0,0.27602372]
[1735470016688,0.01853726,95374.0,95373.0,0.27602372]
[1735470018017,0.01853726,95374.0,95373.0,0.2245708]
[1735470018192,0.01853726,95374.0,95373.0,0.27602372]
[1735470021106,0.01853726,95374.0,95373.0,0.2245708]
[1735470021313,0.01853726,95374.0,95373.0,0.27602372]
[1735470023601,0.0020854,95374.0,95373.0,0.27602372]
[1735470024942,0.0020854,95374.0,95373.0,0.2245708]
[1735470025114,0.0020854,95374.0,95373.0,0.27602372]
[1735470026871,0.01853686,95374.0,95373.0,0.27602372]
[1735470029074,0.01853686,95374.0,95373.0,0.30362609]
[1735470029514,0.01853686,95374.0,95373.0,0.27602372]
[1735470032390,0.01853686,95374.0,95373.0,0.27502372]
[1735470032589,0.01853686,95374.0,95373.0,0.27702372]
[1735470033031,0.01653686,95374.0,95373.0,0.27702372]
[1735470033231,0.01653686,95374.0,95373.0,0.27502372]
[1735470033452,0.01853686,95374.0,95373.0,0.31696235]
[1735470033674,0.0020854,95374.0,95373.0,0.31696235]
[1735470033900,0.0030854,95374.0,95373.0,0.31896235]
[1735470036820,0.0195354,95374.0,95373.0,0.31896235]
[1735470041116,0.01938861,95374.0,95373.0,0.31896235]
[1735470042232,0.01838861,95374.0,95373.0,0.31596235]
[1735470042647,0.01938861,95374.0,95373.0,0.31996235]
[1735470043094,0.01838861,95374.0,95373.0,0.31596235]
[1735470043238,0.01645,95374.0,95373.0,0.31196235]
[1735470043436,5.072e-05,95382.0,95381.0,0.05145292]
[1735470043636,0.001,95374.0,95373.0,0.31396235]
[1735470044262,5.072e-05,95382.0,95373.0,0.31196235]
[1735470044464,0.001,95374.0,95373.0,0.27902372]
[1735470045109,5.072e-05,95382.0,95373.0,0.27502372]
[1735470045343,5.072e-05,95382.0,95373.0,0.27902372]
[1735470045555,5.072e-05,95382.0,95381.0,0.05145292]
[1735470046174,5.072e-05,95382.0,95381.0,0.05045292]
[1735470046784,0.0165006,95382.0,95381.0,0.04945292]
[1735470047375,0.0165006,95382.0,95381.0,0.05145292]
[1735470047577,0.0165006,95382.0,95381.0,0.05545292]
[1735470053587,5.072e-05,95382.0,95381.0,0.05545292]
[1735470056844,0.01650063,95382.0,95381.0,0.05545292]
[1735470059382,0.01650063,95382.0,95381.0,0.06110303]
[1735470059848,0.01650063,95382.0,95381.0,0.05562372]
[1735470060074,0.01658603,95382.0,95381.0,0.05562372]
[1735470060426,0.01658603,95382.0,95381.0,0.05162372]
[1735470060623,0.01658603,95382.0,95381.0,0.12632372]
[1735470060829,0.01758603,95382.0,95381.0,0.13332372]
[1735470063338,0.01758603,95382.0,95381.0,0.23332372]
[1735470063720,0.00113612,95382.0,95381.0,0.23332372]
[1735470066870,0.01758602,95382.0,95381.0,0.23332372]
[1735470073471,0.00113612,95382.0,95381.0,0.23332372]
[1735470075074,0.00113612,95382.0,95381.0,0.22932372]
[1735470075320,0.00013612,95382.0,95381.0,0.23032372]
[1735470075524,0.00113612,95382.0,95381.0,0.23332372]
[1735470076782,0.01758609,95382.0,95381.0,0.23332372]
[1735470083613,0.00113612,95382.0,95381.0,0.23332372]
[1735470086906,0.01758615,95382.0,95381.0,0.23332372]
[1735470091415,0.01658615,95382.0,95381.0,0.23032372]
[1735470091621,0.01658615,95382.0,95381.0,0.22632372]
[1735470091824,0.01658615,95382.0,95381.0,0.23032372]
[1735470092325,0.01758615,95382.0,95381.0,0.23332372]
[1735470093437,0.01758615,95382.0,95381.0,0.22932372]
[1735470093643,0.00013612,95382.0,95381.0,0.22632372]
[1735470093799,0.00113612,95382.0,95381.0,0.23332372]
[1735470094541,0.00113612,95382.0,95381.0,0.22632372]
[1735470094754,0.00013612,95382.0,95381.0,0.22632372]
[1735470094985,0.00113612,95382.0,95381.0,0.23332372]
[1735470095537,0.00113612,95382.0,95381.0,0.15662372]
[1735470096981,0.0175862,95382.0,95381.0,0.15662372]
[1735470103410,0.00113612,95382.0,95381.0,0.15662372]
[1735470106653,0.01758626,95382.0,95381.0,0.15662372]
[1735470113506,0.00113612,95382.0,95381.0,0.15662372]
[1735470113930,0.00113612,95382.0,95381.0,0.0071708]
[1735470114216,4.55750412,95382.0,95381.0,0.0071708]
[1735470114827,4.55650412,95382.0,95381.0,0.0041708]
[1735470115026,4.55650412,95382.0,95381.0,0.0051708]
[1735470115208,4.55650412,95382.0,95381.0,0.0011708]
[1735470115653,4.55650412,95382.0,95381.0,0.0031708]
[1735470115863,4.55650412,95382.0,95381.0,0.0021708]
[1735470116072,4.55650412,95382.0,95381.0,0.0001708]
[1735470116276,4.56050412,95382.0,95381.0,0.0001708]
[1735470116909,4.57695625,95382.0,95381.0,0.0001708]
[1735470120275,4.30499639,95382.0,95381.0,0.0001708]
[1735470120477,4.30499713,95382.0,95381.0,0.0001708]
[1735470123621,4.288545,95382.0,95381.0,0.0001708]
[1735470123980,1.284,95382.0,95381.0,0.0001708]
[1735470124205,1.194,95382.0,95381.0,0.0001708]
[1735470125447,1.19,95382.0,95381.0,0.0011708]
[1735470125790,1.193,95382.0,95381.0,0.0011708]
[1735470126784,1.2094517,95382.0,95381.0,0.0011708]
[1735470128581,0.0194517,95382.0,95381.0,0.0011708]
[1735470129203,1.2004517,95382.0,95381.0,0.0011708]
[1735470130519,1.2005371,95382.0,95381.0,0.0011708]
[1735470133587,1.1840854,95382.0,95381.0,0.0001708]
[1735470134005,1.1840854,95382.0,95381.0,0.0011708]
[1735470134675,1.1810854,95382.0,95381.0,0.0011708]
[1735470134991,1.1830854,95382.0,95381.0,0.0011708]
[1735470136845,1.19953708,95382.0,95381.0,0.0011708]
[1735470139299,1.43394774,95382.0,95381.0,0.0011708]
[1735470139501,1.43594774,95382.0,95381.0,0.0011708]
[1735470140019,1.43594774,95382.0,95381.0,0.0001708]
[1735470140171,1.19953708,95382.0,95381.0,0.0001708]
[1735470140382,1.19953708,95382.0,95381.0,0.0011708]
[1735470141108,1.19753708,95382.0,95381.0,0.0011708]
[1735470141432,1.20353708,95382.0,95381.0,0.0011708]
[1735470141833,1.20553708,95382.0,95381.0,0.0011708]
[1735470142247,1.19953708,95382.0,95381.0,0.0011708]
[1735470142432,1.20553708,95382.0,95381.0,0.0011708]
[1735470142635,1.20353708,95382.0,95381.0,0.0011708]
[1735470143390,1.1870854,95382.0,95381.0,0.0001708]